fUST/lending_fUST_20241128
["ID","MTS","AMOUNT","RATE_DAILY","PERIOD"]
[343648910,1732785044731,-695.235152,0.00024657,7]
[343648911,1732785044741,-695.235152,0.00024657,7]
[343648912,1732785044751,-695.235152,0.00024657,7]
[343648913,1732785044762,-695.235152,0.00024657,7]
[343648914,1732785044771,-151.0,0.00024657,7]
[343648915,1732785044780,-500.0,0.00024657,3]
[343648916,1732785044791,-500.0,0.00024657,3]
[343648917,1732785044801,-500.75796851,0.00024657,3]
[343648918,1732785044810,-264.882921,0.00024657,7]
[343648919,1732785044819,-264.882921,0.00024657,7]
[343648920,1732785044829,-264.882921,0.00024657,7]
[343648921,1732785044840,-264.882921,0.00024657,7]
[343648922,1732785044850,-507.64924649,0.00024657,3]
[343648923,1732785044867,-504.3177057,0.00024657,3]
[343648924,1732785044877,-500.0,0.00024657,3]
[343648925,1732785044886,-500.0,0.00024657,3]
[343648926,1732785044896,-500.0,0.00024657,3]
[343648927,1732785044906,-500.0,0.00024657,3]
[343648928,1732785044915,-500.0,0.00024657,3]
[343648929,1732785044991,-500.0,0.00024657,3]
[343648930,1732785045001,-500.0,0.00024657,3]
[343648931,1732785045011,-500.0,0.00024657,3]
[343648932,1732785045020,-504.64117737,0.00024657,3]
[343648933,1732785045029,-500.0,0.00024657,3]
[343648934,1732785045038,-500.0,0.00024657,3]
[343648935,1732785045047,-500.0,0.00024657,3]
[343648936,1732785045056,-500.0,0.00024657,3]
[343648937,1732785045065,-500.0,0.00024657,3]
[343648938,1732785045074,-500.0,0.00024657,3]
[343648939,1732785045083,-500.0,0.00024657,3]
[343648940,1732785045092,-508.24174921,0.00024657,3]
[343648941,1732785045100,-503.14735553,0.00024657,3]
[343648942,1732785045113,-151.0,0.00024657,7]
[343648943,1732785045122,-510.03743586,0.00024657,3]
[343648944,1732785045131,-503.69640378,0.00024657,3]
[343648945,1732785045141,-502.67324646,0.00024657,3]
[343648946,1732785045150,-505.60893937,0.00024657,3]
[343648947,1732785045159,-513.39235106,0.00024657,3]
[343648948,1732785045168,-503.48440464,0.00024657,3]
[343648949,1732785045177,-500.0,0.00024657,3]
[343648950,1732785045186,-503.77738653,0.00024657,3]
[343648951,1732785045195,-501.33754755,0.00024657,3]
[343648952,1732785045204,-500.0,0.00024657,3]
[343648953,1732785045214,-500.0,0.00024657,3]
[343648954,1732785045223,-522.38888055,0.00024657,3]
[343648955,1732785045232,-504.06686092,0.00024657,3]
[343648956,1732785045241,-505.83339669,0.00024657,3]
[343648957,1732785045250,-500.0,0.00024657,3]
[343648958,1732785045260,-500.0,0.00024657,3]
[343648959,1732785045269,-505.6456852,0.00024657,3]
[343648960,1732785045277,-510.32943839,0.00024657,3]
[343648961,1732785045286,-504.12429758,0.00024657,3]
[343648962,1732785045296,-500.0,0.00024657,3]
[343648963,1732785045305,-500.0,0.00024657,3]
[343648964,1732785045314,-512.52911799,0.00024657,3]
[343648965,1732785045323,-504.11538996,0.00024657,3]
[343648966,1732785045333,-500.0,0.00024657,3]
[343648967,1732785045342,-502.5513997,0.00024657,3]
[343648968,1732785045351,-502.14806934,0.00024657,3]
[343648969,1732785045365,-486.58387898,0.00024657,3]
[343648970,1732785045374,-373.66407643,0.00024657,3]
[343648971,1732785045384,-503.35953577,0.00024657,3]
[343648972,1732785045393,-500.0,0.00024657,3]
[343648973,1732785045403,-500.0,0.00024657,3]
[343648974,1732785045413,-506.51543189,0.00024657,3]
[343648975,1732785045422,-642.25382292,0.00024657,3]
[343648976,1732785045432,-500.0,0.00024657,3]
[343648977,1732785045441,-500.0,0.00024657,3]
[343648978,1732785045451,-510.63576771,0.00024657,3]
[343648979,1732785045461,-500.0,0.00024657,3]
[343648980,1732785045470,-500.0,0.00024657,3]
[343648981,1732785045479,-500.0,0.00024657,3]
[343648982,1732785045489,-500.0,0.00024657,3]
[343648983,1732785045499,-500.0,0.00024657,3]
[343648984,1732785045508,-500.0,0.00024657,3]
[343648985,1732785045517,-500.0,0.00024657,3]
[343648986,1732785045527,-500.0,0.00024657,3]
[343648987,1732785045536,-500.0,0.00024657,3]
[343648988,1732785045546,-635.49341046,0.00024657,3]
[343648989,1732785045556,-500.0,0.00024657,3]
[343648990,1732785045566,-500.0,0.00024657,3]
[343648991,1732785045576,-504.24417415,0.00024657,3]
[343648992,1732785045586,-500.0,0.00024657,3]
[343648993,1732785045596,-500.0,0.00024657,3]
[343648994,1732785045608,-500.0,0.00024657,3]
[343648995,1732785045617,-500.0,0.00024657,3]
[343648996,1732785045627,-500.0,0.00024657,3]
[343648997,1732785045637,-152.87607097,0.00024657,3]
[343648998,1732785045647,-500.0,0.00024657,3]
[343648999,1732785045656,-500.0,0.00024657,3]
[343649000,1732785045666,-500.0,0.00024657,3]
[343649001,1732785045675,-635.73969404,0.00024657,3]
[343649002,1732785045685,-517.11100463,0.00024657,3]
[343649003,1732785045695,-500.0,0.00024657,3]
[343649004,1732785045704,-500.0,0.00024657,3]
[343649005,1732785045714,-500.0,0.00024657,3]
[343649006,1732785045728,-500.0,0.00024657,3]
[343649007,1732785045737,-163.858884,0.00024657,7]
[343649008,1732785045746,-500.0,0.00024657,3]
[343649009,1732785045757,-510.25419194,0.00024657,3]
[343649010,1732785045767,-500.0,0.00024657,3]
[343649011,1732785045776,-500.0,0.00024657,3]
[343649012,1732785045786,-505.41053052,0.00024657,3]
[343649013,1732785045796,-500.0,0.00024657,3]
[343649014,1732785045805,-500.0,0.00024657,3]
[343649015,1732785045814,-500.0,0.00024657,3]
[343649016,1732785045824,-500.0,0.00024657,3]
[343649017,1732785045833,-500.0,0.00024657,3]
[343649018,1732785045842,-503.1334185,0.00024657,3]
[343649019,1732785045852,-500.0,0.00024657,3]
[343649020,1732785045862,-500.0,0.00024657,3]
[343649021,1732785045872,-235.01473013,0.00024657,3]
[343649022,1732785045882,-500.0,0.00024657,3]
[343649023,1732785045891,-500.0,0.00024657,3]
[343649024,1732785045900,-500.0,0.00024657,3]
[343649025,1732785045909,-500.0,0.00024657,3]
[343649026,1732785045918,-500.0,0.00024657,3]
[343649027,1732785045927,-500.0,0.00024657,3]
[343649028,1732785045937,-500.0,0.00024657,3]
[343649029,1732785045946,-500.0,0.00024657,3]
[343649030,1732785045955,-500.0,0.00024657,3]
[343649031,1732785045964,-500.0,0.00024657,3]
[343649032,1732785045974,-500.0,0.00024657,3]
[343649033,1732785045983,-500.0,0.00024657,3]
[343649034,1732785045992,-500.0,0.00024657,3]
[343649035,1732785046001,-500.0,0.00024657,3]
[343649036,1732785046011,-500.0,0.00024657,3]
[343649037,1732785046020,-500.0,0.00024657,3]
[343649038,1732785046031,-500.0,0.00024657,3]
[343649039,1732785046040,-205.63976974,0.00024657,3]
[343649040,1732785046050,-501.60935802,0.00024657,3]
[343649041,1732785046059,-500.0,0.00024657,3]
[343649042,1732785046068,-500.0,0.00024657,3]
[343649044,1732785046077,-500.0,0.00024657,3]
[343649046,1732785046087,-500.0,0.00024657,3]
[343649047,1732785046096,-500.0,0.00024657,3]
[343649051,1732785046166,-500.0,0.00024657,3]
[343649052,1732785046175,-505.30588723,0.00024657,3]
[343649053,1732785046185,-151.0,0.00024657,2]
[343649054,1732785046194,-151.0,0.00024657,2]
[343649055,1732785046203,-501.73889555,0.00024657,3]
[343649057,1732785046212,-500.0,0.00024657,3]
[343649058,1732785046221,-500.0,0.00024657,3]
[343649059,1732785046230,-500.0,0.00024657,3]
[343649060,1732785046239,-500.0,0.00024657,3]
[343649061,1732785046248,-500.0,0.00024657,3]
[343649062,1732785046258,-500.0,0.00024657,3]
[343649063,1732785046267,-152.53190832,0.00024657,3]
[343649064,1732785046276,-359.63475406,0.00024657,3]
[343649065,1732785046285,-500.0,0.00024657,3]
[343649066,1732785046295,-500.0,0.00024657,3]
[343649067,1732785046304,-503.77964788,0.00024657,3]
[343649068,1732785046313,-980.1,0.00024657,3]
[343649069,1732785046322,-151.0,0.00024657,7]
[343649070,1732785046331,-980.1,0.00024657,3]
[343649072,1732785046341,-980.1,0.00024657,3]
[343649074,1732785046350,-500.0,0.00024657,3]
[343649076,1732785046361,-151.0,0.00024657,7]
[343649077,1732785046371,-980.1,0.00024657,3]
[343649078,1732785046380,-500.0,0.00024657,3]
[343649080,1732785046390,-980.1,0.00024657,3]
[343649082,1732785046399,-513.20656209,0.00024657,3]
[343649084,1732785046408,-980.1,0.00024657,3]
[343649085,1732785046418,-980.1,0.00024657,3]
[343649086,1732785046427,-980.1,0.00024657,3]
[343649087,1732785046436,-980.1,0.00024657,3]
[343649088,1732785046445,-980.1,0.00024657,3]
[343649089,1732785046454,-980.1,0.00024657,3]
[343649090,1732785046463,-980.1,0.00024657,3]
[343649091,1732785046473,-980.1,0.00024657,3]
[343649092,1732785046482,-980.1,0.00024657,3]
[343649093,1732785046492,-500.0,0.00024657,3]
[343649094,1732785046501,-980.1,0.00024657,3]
[343649095,1732785046510,-980.1,0.00024657,3]
[343649096,1732785046520,-500.0,0.00024657,3]
[343649097,1732785046529,-980.1,0.00024657,3]
[343649098,1732785046539,-516.01121467,0.00024657,3]
[343649099,1732785046549,-980.1,0.00024657,3]
[343649100,1732785046558,-980.1,0.00024657,3]
[343649101,1732785046567,-980.1,0.00024657,3]
[343649102,1732785046577,-980.1,0.00024657,3]
[343649103,1732785046586,-980.1,0.00024657,3]
[343649104,1732785046595,-500.0,0.00024657,3]
[343649105,1732785046606,-980.1,0.00024657,3]
[343649106,1732785046615,-500.0,0.00024657,3]
[343649107,1732785046624,-980.13506814,0.00024657,3]
[343649108,1732785046634,-500.0,0.00024657,3]
[343649109,1732785046643,-500.0,0.00024657,3]
[343649110,1732785046652,-500.0,0.00024657,3]
[343649111,1732785046666,-500.0,0.00024657,3]
[343649112,1732785046685,-500.0,0.00024657,3]
[343649113,1732785046697,-500.0,0.00024657,3]
[343649114,1732785046714,-500.0,0.00024657,3]
[343649115,1732785046736,-501.0179662,0.00024657,3]
[343649116,1732785046752,-500.0,0.00024657,3]
[343649117,1732785046770,-500.0,0.00024657,3]
[343649118,1732785046783,-500.0,0.00024657,3]
[343649119,1732785046798,-500.0,0.00024657,3]
[343649120,1732785046812,-500.0,0.00024657,3]
[343649121,1732785046825,-514.2250213,0.00024657,3]
[343649122,1732785046837,-503.80014896,0.00024657,3]
[343649123,1732785046853,-500.0,0.00024657,3]
[343649124,1732785046869,-500.0,0.00024657,3]
[343649125,1732785046885,-429.89490033,0.00024657,3]
[343649126,1732785046901,-500.0,0.00024657,3]
[343649127,1732785046912,-500.0,0.00024657,3]
[343649128,1732785046925,-500.0,0.00024657,3]
[343649129,1732785046942,-500.0,0.00024657,3]
[343649130,1732785046954,-500.0,0.00024657,3]
[343649131,1732785046966,-500.0,0.00024657,3]
[343649132,1732785046979,-512.26724611,0.00024657,3]
[343649133,1732785046991,-500.0,0.00024657,3]
[343649134,1732785047003,-514.98818935,0.00024657,3]
[343649135,1732785047019,-500.0,0.00024657,3]
[343649136,1732785047033,-500.0,0.00024657,3]
[343649137,1732785047047,-500.0,0.00024657,3]
[343649138,1732785047061,-505.48413039,0.00024657,3]
[343649139,1732785047073,-500.0,0.00024657,3]
[343649140,1732785047086,-504.51114303,0.00024657,3]
[343649141,1732785047098,-500.0,0.00024657,3]
[343649142,1732785047112,-500.0,0.00024657,3]
[343649143,1732785047125,-205.50583945,0.00024657,3]
[343649144,1732785047137,-151.0,0.00024657,7]
[343649145,1732785047150,-500.0,0.00024657,3]
[343649146,1732785047164,-216.138144,0.00024657,7]
[343649147,1732785047177,-500.0,0.00024657,3]
[343649148,1732785047189,-500.0,0.00024657,3]
[343649149,1732785047202,-501.45447408,0.00024657,3]
[343649150,1732785047214,-500.0,0.00024657,3]
[343649151,1732785047226,-500.0,0.00024657,3]
[343649152,1732785047240,-500.0,0.00024657,3]
[343649153,1732785047253,-500.0,0.00024657,3]
[343649154,1732785047266,-500.0,0.00024657,3]
[343649155,1732785047278,-500.0,0.00024657,3]
[343649156,1732785047291,-500.0,0.00024657,3]
[343649157,1732785047303,-500.0,0.00024657,3]
[343649158,1732785047316,-500.0,0.00024657,3]
[343649159,1732785047329,-485.35670947,0.00024657,3]
[343649160,1732785047342,-78.71163334,0.00024657,3]
[343649170,1732785263346,10000.0,0.0002,2]
[343649180,1732785499564,169.108906,0.00013973,2]
[343649185,1732786041139,-493.95294196,0.00022984,2]
[343649186,1732786041160,-399.14737187,0.00023116,2]
[343649187,1732786041182,-167.132589,0.00023216,2]
[343649188,1732786041203,-253.08146242,0.00023489,2]
[343649193,1732786123688,2332.008639,0.00020551,15]
[343649195,1732786128629,60854.55125775,0.0001,30]
[343649226,1732786232732,-153.54672734,0.00023389,2]
[343649228,1732786232743,-249.426442,0.0002348,2]
[343649229,1732786232753,-300.0,0.00023489,2]
[343649231,1732786232762,-300.0,0.00023489,2]
[343649232,1732786232774,-10504.1106708,0.0002349,2]
[343649233,1732786232783,-1000.0,0.00024383,2]
[343649234,1732786232792,-2165.66699909,0.00024412,2]
[343649235,1732786232802,-1000.0,0.00024417,2]
[343649236,1732786232811,-1000.0,0.00024429,2]
[343649237,1732786232821,-1000.0,0.0002443,2]
[343649238,1732786232830,-1000.0,0.00024464,2]
[343649239,1732786232840,-5000.0,0.00024465,2]
[343649240,1732786232849,-1000.0,0.00024479,2]
[343649241,1732786232859,-1000.0,0.00024481,2]
[343649242,1732786232868,-1000.0,0.00024482,2]
[343649243,1732786232878,-1000.0,0.00024498,2]
[343649244,1732786232889,-12532.91381007,0.000245,2]
[343649245,1732786232898,-166.6,0.00024512,4]
[343649246,1732786232909,-1000.0,0.0002452,2]
[343649247,1732786232918,-1000.0,0.0002455,2]
[343649248,1732786232928,-156.34799654,0.0002455,2]
[343649249,1732786232937,-666.0,0.00024557,2]
[343649250,1732786232947,-9006.27735416,0.00024557,2]
[343649251,1732786232959,-5951.18509524,0.00024557,2]
[343649252,1732786232971,-763.22645632,0.00024557,2]
[343649253,1732786232981,-560.80305792,0.00024557,2]
[343649254,1732786232990,-864.97787883,0.00024585,2]
[343649255,1732786233000,-1000.0,0.00024599,2]
[343649256,1732786233009,-212.8417378,0.000246,2]
[343649257,1732786233021,-1000.0,0.00024601,2]
[343649258,1732786233031,-1000.0,0.00024613,2]
[343649259,1732786233040,-1000.0,0.00024638,2]
[343649260,1732786233050,-150.01,0.00024656,2]
[343649261,1732786233061,-1825.50014031,0.00024656,2]
[343649262,1732786233074,-606.35925972,0.00024656,2]
[343649263,1732786233084,-500.0,0.00024656,2]
[343649264,1732786233094,-181.99518434,0.00024656,2]
[343649265,1732786233104,-500.0,0.00024656,2]
[343649266,1732786233116,-494.40783603,0.00024656,2]
[343649267,1732786233126,-205.2767927,0.00024657,2]
[343649278,1732786240675,-150.01,0.00024656,2]
[343649280,1732786240684,-782.15865894,0.00024656,2]
[343649281,1732786240793,-739.09145799,0.00024656,2]
[343649282,1732786240802,-16853.93408386,0.00024657,2]
[343649283,1732786240811,-503.44941081,0.00024657,3]
[343649284,1732786240820,-151.0,0.00024657,7]
[343649285,1732786240829,-151.0,0.00024657,7]
[343649286,1732786240838,-168.629623,0.00024657,7]
[343649287,1732786240848,-500.0,0.00024657,3]
[343649288,1732786240858,-638.54209725,0.00024657,3]
[343649289,1732786240867,-151.0,0.00024657,7]
[343649290,1732786240877,-151.0,0.00024657,7]
[343649291,1732786240886,-151.0,0.00024657,7]
[343649292,1732786240975,-336.55244861,0.00024657,3]
[343649293,1732786240985,-29.71252599,0.00024657,3]
[343649312,1732786246763,-470.28747401,0.00024657,3]
[343649313,1732786246773,-500.0,0.00024657,3]
[343649314,1732786246782,-503.19013828,0.00024657,3]
[343649315,1732786246799,-500.0,0.00024657,3]
[343649316,1732786246808,-500.0,0.00024657,3]
[343649317,1732786246818,-500.0,0.00024657,3]
[343649318,1732786246827,-500.0,0.00024657,3]
[343649319,1732786246837,-513.92580476,0.00024657,3]
[343649320,1732786246846,-414.05114805,0.00024657,2]
[343649321,1732786246856,-503.3050468,0.00024657,3]
[343649322,1732786246866,-500.0,0.00024657,3]
[343649323,1732786246875,-390.40448302,0.00024657,3]
[343649324,1732786246885,-500.0,0.00024657,3]
[343649325,1732786246894,-511.10215184,0.00024657,3]
[343649326,1732786246904,-501.374902,0.00024657,3]
[343649327,1732786246913,-507.22325435,0.00024657,3]
[343649328,1732786246923,-504.23066236,0.00024657,3]
[343649329,1732786246932,-502.73988546,0.00024657,3]
[343649330,1732786246941,-502.3512158,0.00024657,3]
[343649331,1732786246950,-444.40670548,0.00024657,3]
[343649333,1732786363192,159.98,0.00022,2]
[343649335,1732786515415,159.96,0.00026,60]
[343649337,1732786592202,169.39074,0.00013973,2]
[343649339,1732786636335,250.0,0.00026,60]
[343649351,1732787249131,-300.0,0.00023634,2]
[343649352,1732787249153,-300.0,0.00023634,2]
[343649353,1732787249179,-21203.10396043,0.00023635,2]
[343649354,1732787273992,169.888373,0.00013973,2]
[343649369,1732787432064,-412.60757393,0.00023399,2]
[343649371,1732787432077,-17.60390187,0.00023399,2]
[343649374,1732787432087,-263.11628287,0.00023548,2]
[343649379,1732787432128,-701.91376333,0.00023548,2]
[343649381,1732787432138,-310.00004396,0.00024304,2]
[343649383,1732787432147,-1119.54192842,0.00024457,2]
[343649794,1732787437949,-859.58719862,0.00024457,2]
[343649795,1732787437959,-300.0,0.00024523,2]
[343649796,1732787437968,-300.0,0.00024556,2]
[343649797,1732787437977,-5453.59712823,0.00024557,2]
[343649798,1732787437987,-19246.73234505,0.00024557,2]
[343649799,1732787438010,-542.75853222,0.00024557,2]
[343649800,1732787438020,-162.84146778,0.00024557,2]
[343649801,1732787438031,-341.88128433,0.00024557,2]
[343649802,1732787438040,-291.268,0.000246,7]
[343649803,1732787438050,-7066.31417861,0.00024612,2]
[343649804,1732787438059,-198.53,0.00024647,3]
[343649805,1732787438069,-297.8,0.00024647,3]
[343649806,1732787438083,-893.45,0.00024647,3]
[343649807,1732787438092,-156.34799654,0.00024656,2]
[343649808,1732787438103,-114.40854052,0.00024656,2]
[343649820,1732787442990,-52.12963465,0.00024656,2]
[343649821,1732787443000,-1267.70843077,0.00024656,2]
[343649822,1732787443009,-500.0,0.00024656,2]
[343649823,1732787443020,-166.04531512,0.00024656,2]
[343649824,1732787443029,-344.12707559,0.00024656,2]
[343649825,1732787443039,-8214.68772222,0.00024657,2]
[343649836,1732787445871,-314.91771606,0.00024657,2]
[343649837,1732787445880,-151.0,0.00024657,7]
[343649838,1732787445890,-151.0,0.00024657,7]
[343649839,1732787445900,-170.32228394,0.00024657,7]
[343649882,1732787953913,170.340767,0.00013973,2]
[343649887,1732788441161,-4745.67296113,0.00023083,2]
[343649946,1732788632309,-1692.9616384,0.00022671,2]
[343649948,1732788632318,-200.71635227,0.000229,4]
[343649950,1732788632327,-555.1264415,0.0002296,2]
[343649952,1732788632337,-125.18906054,0.00023,2]
[343649956,1732788632368,-492.09012646,0.00023,2]
[343649958,1732788632378,-153.54672734,0.00023453,2]
[343649960,1732788632387,-300.0,0.00023553,2]
[343649962,1732788632397,-300.0,0.00023553,2]
[343649964,1732788632407,-1543.0,0.00023553,2]
[343649966,1732788632416,-9090.8208736,0.00023554,2]
[343649968,1732788632425,-1731.73798616,0.00024457,2]
[343649971,1732788632434,-197.31286312,0.00024557,2]
[343649974,1732788632443,-29303.55876371,0.00024557,2]
[343649977,1732788632453,-666.0,0.00024557,2]
[343649980,1732788632463,-645.61524508,0.00024557,2]
[343649983,1732788632472,-1090.50655707,0.00024557,2]
[343649985,1732788632481,-3000.0,0.000246,2]
[343649986,1732788632491,-233.014,0.000246,7]
[343649987,1732788632501,-616.0,0.000246,2]
[343649989,1732788632510,-1463.82724467,0.0002461,2]
[343649998,1732788638375,-685.79859934,0.0002461,2]
[343649999,1732788638437,-850.37415599,0.0002461,2]
[343650000,1732788638447,-4264.80271914,0.0002462,2]
[343650001,1732788638456,-3000.0,0.0002462,2]
[343650002,1732788638466,-3000.0,0.0002463,2]
[343650003,1732788638475,-3000.0,0.0002464,2]
[343650004,1732788638484,-165.44,0.00024647,3]
[343650005,1732788638494,-496.34,0.00024647,3]
[343650006,1732788638503,-3000.0,0.0002465,2]
[343650007,1732788638512,-500.0,0.00024656,2]
[343650008,1732788638521,-584.19831357,0.00024656,2]
[343650009,1732788638536,-156.76077829,0.00024656,2]
[343650010,1732788638548,-257.09,0.00024656,2]
[343650011,1732788638559,-86.14922171,0.00024656,2]
[343650012,1732788638568,-233.09064919,0.00024656,2]
[343650013,1732788638586,-266.90935081,0.00024656,2]
[343650014,1732788638596,-500.0,0.00024656,2]
[343650015,1732788638605,-500.0,0.00024656,2]
[343650016,1732788638615,-500.0,0.00024656,2]
[343650017,1732788638624,-500.0,0.00024656,2]
[343650018,1732788638633,-1056.42369231,0.00024656,2]
[343650019,1732788638642,-500.0,0.00024656,2]
[343650020,1732788638652,-151.0,0.00024657,7]
[343650021,1732788638661,-151.0,0.00024657,7]
[343650022,1732788638670,-151.0,0.00024657,7]
[343650023,1732788638679,-151.0,0.00024657,7]
[343650024,1732788638688,-152.89163,0.00024657,7]
[343650025,1732788638698,-151.0,0.00024657,7]
[343650026,1732788638707,-151.0,0.00024657,7]
[343650027,1732788638716,-151.0,0.00024657,7]
[343650028,1732788638725,-151.0,0.00024657,7]
[343650029,1732788638735,-151.0,0.00024657,7]
[343650030,1732788638745,-151.0,0.00024657,7]
[343650031,1732788638755,-151.0,0.00024657,7]
[343650032,1732788638764,-151.0,0.00024657,7]
[343650033,1732788638776,-151.0,0.00024657,7]
[343650034,1732788638785,-151.0,0.00024657,7]
[343650035,1732788638795,-151.0,0.00024657,7]
[343650036,1732788638807,-151.0,0.00024657,7]
[343650037,1732788638816,-151.0,0.00024657,7]
[343650038,1732788638825,-151.0,0.00024657,7]
[343650039,1732788638835,-151.0,0.00024657,7]
[343650040,1732788638844,-151.0,0.00024657,7]
[343650041,1732788638853,-212.069425,0.00024657,7]
[343650042,1732788638863,-192.676412,0.00024657,7]
[343650043,1732788638873,-151.0,0.00024657,7]
[343650044,1732788638883,-500.0,0.00024657,3]
[343650045,1732788638892,-211.906335,0.00024657,7]
[343650046,1732788638901,-504.77018715,0.00024657,3]
[343650047,1732788638910,-500.58270002,0.00024657,3]
[343650048,1732788638919,-500.0,0.00024657,3]
[343650049,1732788638928,-500.0,0.00024657,3]
[343650050,1732788638937,-500.0,0.00024657,3]
[343650051,1732788638946,-500.0,0.00024657,3]
[343650052,1732788638956,-500.0,0.00024657,3]
[343650053,1732788638965,-500.0,0.00024657,3]
[343650054,1732788638974,-500.0,0.00024657,3]
[343650055,1732788638983,-500.0,0.00024657,3]
[343650056,1732788638992,-500.0,0.00024657,3]
[343650057,1732788639001,-500.0,0.00024657,3]
[343650058,1732788639010,-500.0,0.00024657,3]
[343650059,1732788639019,-500.0,0.00024657,3]
[343650060,1732788639029,-500.0,0.00024657,3]
[343650061,1732788639039,-500.0,0.00024657,3]
[343650062,1732788639048,-453.90289946,0.00024657,3]
[343650063,1732788639058,-151.0,0.00024657,7]
[343650064,1732788639067,-151.0,0.00024657,7]
[343650065,1732788639077,-170.149182,0.00024657,7]
[343650066,1732788639087,-500.0,0.00024657,3]
[343650067,1732788639096,-500.0,0.00024657,3]
[343650068,1732788639106,-500.0,0.00024657,3]
[343650069,1732788639115,-500.0,0.00024657,3]
[343650070,1732788639124,-500.0,0.00024657,3]
[343650071,1732788639133,-500.0,0.00024657,3]
[343650072,1732788639143,-500.0,0.00024657,3]
[343650073,1732788639152,-500.0,0.00024657,3]
[343650074,1732788639162,-500.0,0.00024657,3]
[343650075,1732788639172,-500.0,0.00024657,3]
[343650076,1732788639182,-449.70825171,0.00024657,3]
[343650077,1732788639191,-176.993078,0.00024657,7]
[343650078,1732788639201,-500.0,0.00024657,3]
[343650079,1732788639211,-500.0,0.00024657,3]
[343650080,1732788639220,-500.0,0.00024657,3]
[343650081,1732788639229,-500.0,0.00024657,3]
[343650082,1732788639238,-500.0,0.00024657,3]
[343650083,1732788639247,-500.0,0.00024657,3]
[343650084,1732788639257,-500.0,0.00024657,3]
[343650085,1732788639266,-500.0,0.00024657,3]
[343650086,1732788639277,-500.0,0.00024657,3]
[343650087,1732788639287,-500.0,0.00024657,3]
[343650088,1732788639295,-500.0,0.00024657,3]
[343650089,1732788639305,-502.58441739,0.00024657,3]
[343650090,1732788639314,-502.18353825,0.00024657,3]
[343650091,1732788639324,-500.0,0.00024657,3]
[343650092,1732788639334,-249.00548803,0.00024657,3]
[343650093,1732788639347,-500.0,0.00024657,3]
[343650094,1732788639356,-500.0,0.00024657,3]
[343650095,1732788639366,-500.0,0.00024657,3]
[343650096,1732788639375,-152.537679,0.00024657,7]
[343650097,1732788639385,-500.0,0.00024657,3]
[343650098,1732788639395,-500.0,0.00024657,3]
[343650099,1732788639404,-500.0,0.00024657,3]
[343650100,1732788639414,-500.0,0.00024657,3]
[343650101,1732788639423,-500.0,0.00024657,3]
[343650102,1732788639432,-500.0,0.00024657,3]
[343650103,1732788639441,-500.0,0.00024657,3]
[343650104,1732788639451,-500.0,0.00024657,3]
[343650105,1732788639460,-500.0,0.00024657,3]
[343650106,1732788639469,-500.0,0.00024657,3]
[343650107,1732788639478,-500.0,0.00024657,3]
[343650108,1732788639488,-500.0,0.00024657,3]
[343650109,1732788639497,-500.0,0.00024657,3]
[343650110,1732788639506,-500.0,0.00024657,3]
[343650111,1732788639515,-581.61067662,0.00024657,3]
[343650112,1732788639527,-500.0,0.00024657,3]
[343650113,1732788639536,-500.0,0.00024657,3]
[343650114,1732788639547,-500.0,0.00024657,3]